[Event "3rd Gujarat GM Open 2022"]
[Site "Ahmedabad"]
[Date "2022.04.02"]
[Round "2.2"]
[White "Savchenko, Boris"]
[Black "Abhay Bandewar"]
[Result "1-0"]
[ECO "D00"]
[WhiteElo "2535"]
[BlackElo "1804"]
[Annotator "ChessBase"]
[PlyCount "69"]
[EventDate "2022.03.31"]
[EventType "swiss"]
[EventCountry "IND"]
[SourceTitle "playchess.com"]
[Source "ChessBase"]
[SourceQuality "1"]
[TimeControl "5400+30"]

1. d4 {[%emt 0:12:12]} d5 {[%emt 0:00:51]} 2. Bf4 {[%emt 0:00:25]} c5 {[%emt 0:01:22]} 3. e3 {[%emt 0:00:08]} Nc6 {[%emt 0:00:17]} 4. c3 {[%emt 0:00:08]} Nf6 {[%emt 0:01:25]} 5. Nd2 {[%emt 0:01:41]} e6 {[%emt 0:00:31]} 6. Bd3 {[%emt 0:00:09]} Bd6 {[%emt 0:02:30]} 7. Bxd6 {[%emt 0:00:07]} Qxd6 {[%emt 0:00:08]} 8. f4 {[%emt 0:00:04]} cxd4 {[%emt 0:03:32]} 9. cxd4 {[%emt 0:01:51]} Qb4 {[%emt 0:16:45]} 10. Qb1 {[%emt 0:10:22]} Ng4 {[%emt 0:02:16]} 11. a3 {[%emt 0:06:58]} Qb6 {[%emt 0:09:42]} 12. Nf1 {[%emt 0:01:40]} Nxe3 {[%emt 0:08:44]} 13. Nxe3 {[%emt 0:00:17]} Qxd4 {[%emt 0:00:05]} 14. Kf2 {[%emt 0:00:55]} Qxf4+ {[%emt 0:01:06]} 15. Nf3 {[%emt 0:02:36]} Ne5 {[%emt 0:09:45]} 16. Re1 {[%emt 0:04:01]} Nxf3 {[%emt 0:05:14]} 17. g3 {[%emt 0:00:35]} Qf6 {[%emt 0:06:44]} 18. Ng4 {[%emt 0:01:22]} Qg5 {[%emt 0:00:48]} 19. Kxf3 {[%emt 0:00:12]} Qh5 {[%emt 0:01:16]} 20. Qc2 {[%emt 0:13:57]} O-O {[%emt 0:05:25]} 21. h3 {[%emt 0:01:22]} f5 {[%emt 0:02:19]} 22. Kg2 {[%emt 0:00:10]} fxg4 {[%emt 0:01:17]} 23. hxg4 {[%emt 0:00:04]} Qxg4 {[%emt 0:01:13]} 24. Bxh7+ {[%emt 0:00:07]} Kh8 {[%emt 0:00:26]} 25. Re3 {[%emt 0:00:40]} Rf6 {[%emt 0:07:11]} 26. Rh1 {[%emt 0:08:11]} Qg5 {[%emt 0:07:49]} 27. Rb3 {[%emt 0:27:16]} Rh6 {[%emt 0:01:49]} 28. Bg6 {[%emt 0:05:29]} Bd7 {[%emt 0:02:03]} 29. Rxh6+ {[%emt 0:01:19]} Qxh6 {[%emt 0:01:08]} 30. Rxb7 {[%emt 0:00:29]} Bc6 {[%emt 0:00:49]} 31. Re7 {[%emt 0:00:42]} d4+ {[%emt 0:00:47]} 32. Qxc6 {[%emt 0:00:08]} Qd2+ {[%emt 0:00:18]} 33. Kg1 {[%emt 0:00:42]} Qe1+ {[%emt 0:00:26]} 34. Kh2 {[%emt 0:00:16]} Qd2+ {[%emt 0:00:09]} 35. Qg2 {[%emt 0:00:07]} 1-0

[Event "3rd Gujarat GM Open 2022"]
[Site "Ahmedabad"]
[Date "2022.04.02"]
[Round "2.3"]
[White "Tamhankar, Siddhant"]
[Black "Stany, G.A."]
[Result "0-1"]
[ECO "B06"]
[WhiteElo "1804"]
[BlackElo "2517"]
[Annotator "ChessBase"]
[PlyCount "62"]
[EventDate "2022.03.31"]
[EventType "swiss"]
[EventCountry "IND"]
[SourceTitle "playchess.com"]
[Source "ChessBase"]
[SourceQuality "1"]
[TimeControl "5400+30"]

1. e4 {[%emt 0:04:27]} g6 {[%emt 0:00:39]} 2. d4 {[%emt 0:00:10]} Bg7 {[%emt 0:00:06]} 3. Nc3 {[%emt 0:00:28]} d6 {[%emt 0:00:31]} 4. Bc4 {[%emt 0:03:41]} c6 {[%emt 0:00:50]} 5. Bb3 {[%emt 0:01:46]} b5 {[%emt 0:06:19]} 6. a3 {[%emt 0:10:17]} Nf6 {[%emt 0:17:43]} 7. Nge2 {[%emt 0:08:39]} O-O {[%emt 0:05:05]} 8. O-O {[%emt 0:02:50]} e5 {[%emt 0:03:16]} 9. Bg5 {[%emt 0:06:38]} Qb6 {[%emt 0:03:09]} 10. dxe5 {[%emt 0:04:35]} dxe5 {[%emt 0:01:19]} 11. Be3 {[%emt 0:00:10]} Qc7 {[%emt 0:00:25]} 12. f3 {[%emt 0:00:38]} a5 {[%emt 0:03:46]} 13. Qe1 {[%emt 0:01:38]} Ba6 {[%emt 0:01:45]} 14. Qf2 {[%emt 0:00:34]} Nbd7 {[%emt 0:01:10]} 15. Rfd1 {[%emt 0:01:37]} Rfe8 {[%emt 0:01:22]} 16. Nc1 {[%emt 0:10:26]} Rac8 {[%emt 0:18:47]} 17. Nd3 {[%emt 0:09:44]} c5 {[%emt 0:04:57]} 18. Bd5 {[%emt 0:07:12]} Bf8 {[%emt 0:11:16]} 19. a4 {[%emt 0:06:21]} b4 {[%emt 0:01:03]} 20. Nb5 {[%emt 0:00:56]} Bxb5 {[%emt 0:00:31]} 21. axb5 {[%emt 0:00:02]} Nxd5 {[%emt 0:00:11]} 22. exd5 {[%emt 0:00:03]} Nb6 {[%emt 0:02:39]} 23. f4 {[%emt 0:05:36]} Nxd5 {[%emt 0:04:57]} 24. Nxe5 {[%emt 0:01:53]} Rxe5 {[%emt 0:02:01]} 25. fxe5 {[%emt 0:00:14]} Qxe5 {[%emt 0:00:06]} 26. Rxd5 {[%emt 0:03:25]} Qxd5 {[%emt 0:00:09]} 27. Rxa5 {[%emt 0:00:07]} Rb8 {[%emt 0:03:26]} 28. Qf3 {[%emt 0:05:40]} Qd7 {[%emt 0:00:51]} 29. b6 {[%emt 0:01:06]} Rxb6 {[%emt 0:00:53]} 30. Ra8 {[%emt 0:01:00]} Rc6 {[%emt 0:01:04]} 31. Bh6 {[%emt 0:03:21]} Rc8 {[%emt 0:05:44]} 0-1

[Event "3rd Gujarat GM Open 2022"]
[Site "Ahmedabad"]
[Date "2022.04.02"]
[Round "2.4"]
[White "Harsha Bharathakoti"]
[Black "Adireddy Arjun"]
[Result "1-0"]
[ECO "B91"]
[WhiteElo "2499"]
[BlackElo "1796"]
[Annotator "ChessBase"]
[PlyCount "43"]
[EventDate "2022.03.31"]
[EventType "swiss"]
[EventCountry "IND"]
[SourceTitle "playchess.com"]
[Source "ChessBase"]
[SourceQuality "1"]
[TimeControl "5400+30"]

1. e4 {[%emt 1:31:00]} c5 {[%emt 1:31:00]} 2. Nc3 {[%emt 0:00:30]} a6 {[%emt 0:00:30]} 3. g3 {[%emt 0:00:30]} b5 {[%emt 0:00:30]} 4. Bg2 {[%emt 0:00:30]} Bb7 {[%emt 0:00:30]} 5. Nge2 {[%emt 0:00:30]} d6 {[%emt 0:00:30]} 6. O-O {[%emt 0:00:30]} Nf6 {[%emt 0:00:30]} 7. d4 {[%emt 0:00:30]} cxd4 {[%emt 0:00:30]} 8. Nxd4 {[%emt 0:00:30]} g6 {[%emt 0:00:30]} 9. Re1 {[%emt 0:00:30]} Qc7 {[%emt 0:00:30]} 10. a4 {[%emt 0:00:30]} bxa4 {[%emt 0:00:30]} 11. Nd5 {[%emt 0:00:30]} Nxd5 {[%emt 0:00:30]} 12. exd5 {[%emt 0:00:30]} Nd7 {[%emt 0:00:30]} 13. Rxa4 {[%emt 0:00:30]} Nb6 {[%emt 0:00:30]} 14. Ra3 {[%emt 0:00:30]} Nxd5 {[%emt 0:00:30]} 15. Rb3 {[%emt 0:00:30]} Nb6 {[%emt 0:00:30]} 16. Bxb7 {[%emt 0:00:30]} Qxb7 {[%emt 0:00:30]} 17. Nf3 {[%emt 0:00:30]} Rb8 {[%emt 0:00:30]} 18. Qxd6 {[%emt 0:00:30]} e6 {[%emt 0:00:30]} 19. Qd4 {[%emt 0:00:30]} Rg8 {[%emt 0:00:30]} 20. Bf4 {[%emt 0:00:30]} Bg7 {[%emt 0:00:30]} 21. Qd6 {[%emt 0:00:30]} e5 {[%emt 0:00:30]} 22. Bxe5 {[%emt 0:00:30]} 1-0

[Event "3rd Gujarat GM Open 2022"]
[Site "Ahmedabad"]
[Date "2022.04.02"]
[Round "2.5"]
[White "Vrashank Chouhan"]
[Black "Venkatesh, M.R."]
[Result "1-0"]
[ECO "B07"]
[WhiteElo "1790"]
[BlackElo "2493"]
[Annotator "ChessBase"]
[PlyCount "63"]
[EventDate "2022.03.31"]
[EventType "swiss"]
[EventCountry "IND"]
[SourceTitle "playchess.com"]
[Source "ChessBase"]
[SourceQuality "1"]
[TimeControl "5400+30"]

1. d4 {[%emt 0:09:31]} Nf6 {[%emt 0:00:30]} 2. Bf4 {[%emt 0:00:33]} g6 {[%emt 0:00:27]} 3. Nc3 {[%emt 0:00:06]} Bg7 {[%emt 0:01:01]} 4. e4 {[%emt 0:00:05]} d6 {[%emt 0:00:25]} 5. Qd2 {[%emt 0:00:10]} h6 {[%emt 0:06:00]} 6. f3 {[%emt 0:04:27]} Nbd7 {[%emt 0:00:55]} 7. O-O-O {[%emt 0:02:56]} Nf8 {[%emt 0:13:34]} 8. h4 {[%emt 0:07:55]} a6 {[%emt 0:04:31]} 9. Qe1 {[%emt 0:05:27]} N6d7 {[%emt 0:09:35]} 10. e5 {[%emt 0:02:29]} Ne6 {[%emt 0:03:10]} 11. Bh2 {[%emt 0:02:38]} dxe5 {[%emt 0:00:21]} 12. dxe5 {[%emt 0:00:23]} b5 {[%emt 0:01:51]} 13. f4 {[%emt 0:05:52]} Bb7 {[%emt 0:21:43]} 14. Nf3 {[%emt 0:03:04]} Qc8 {[%emt 0:01:21]} 15. h5 {[%emt 0:01:25]} Ndc5 {[%emt 0:01:14]} 16. b4 {[%emt 0:03:13]} Na4 {[%emt 0:07:49]} 17. Nxa4 {[%emt 0:04:50]} bxa4 {[%emt 0:00:02]} 18. Bd3 {[%emt 0:00:22]} O-O {[%emt 0:03:01]} 19. Nh4 {[%emt 0:05:50]} c5 {[%emt 0:02:35]} 20. hxg6 {[%emt 0:00:49]} cxb4 {[%emt 0:00:26]} 21. Qxb4 {[%emt 0:10:34]} Nc5 {[%emt 0:05:16]} 22. gxf7+ {[%emt 0:05:57]} Rxf7 {[%emt 0:01:24]} 23. Bg6 {[%emt 0:00:36]} Rf8 {[%emt 0:04:40]} 24. Bg1 {[%emt 0:00:15]} Ne6 {[%emt 0:01:21]} 25. Nf5 {[%emt 0:00:44]} Qc7 {[%emt 0:01:58]} 26. Bb6 {[%emt 0:00:43]} a5 {[%emt 0:00:12]} 27. Qxe7 {[%emt 0:05:55]} Qxe7 {[%emt 0:00:52]} 28. Nxe7+ {[%emt 0:00:05]} Kh8 {[%emt 0:00:03]} 29. f5 {[%emt 0:00:34]} Bxe5 {[%emt 0:00:28]} 30. fxe6 {[%emt 0:03:05]} Bxg2 {[%emt 0:00:46]} 31. Rxh6+ {[%emt 0:01:37]} Kg7 {[%emt 0:00:02]} 32. Be3 {[%emt 0:00:09]} 1-0

[Event "3rd Gujarat GM Open 2022"]
[Site "Ahmedabad"]
[Date "2022.04.02"]
[Round "2.6"]
[White "Fawzy, Adham"]
[Black "Lakshyesh Mohan Gupta"]
[Result "1-0"]
[ECO "C68"]
[WhiteElo "2476"]
[BlackElo "1777"]
[Annotator "ChessBase"]
[PlyCount "101"]
[EventDate "2022.03.31"]
[EventType "swiss"]
[EventCountry "IND"]
[SourceTitle "playchess.com"]
[Source "ChessBase"]
[SourceQuality "1"]
[TimeControl "5400+30"]

1. e4 {[%emt 0:06:32]} e5 {[%emt 0:00:31]} 2. Nf3 {[%emt 0:00:07]} Nc6 {[%emt 0:00:01]} 3. Bb5 {[%emt 0:00:11]} a6 {[%emt 0:00:45]} 4. Bxc6 {[%emt 0:00:09]} dxc6 {[%emt 0:00:02]} 5. O-O {[%emt 0:00:03]} Bd6 {[%emt 0:01:17]} 6. d4 {[%emt 0:00:24]} exd4 {[%emt 0:01:25]} 7. Qxd4 {[%emt 0:00:04]} f6 {[%emt 0:06:59]} 8. Be3 {[%emt 0:01:44]} Ne7 {[%emt 0:04:34]} 9. Nbd2 {[%emt 0:00:34]} Ng6 {[%emt 0:01:26]} 10. Nc4 {[%emt 0:00:23]} Be6 {[%emt 0:15:42]} 11. Nxd6+ {[%emt 0:02:20]} Qxd6 {[%emt 0:01:12]} 12. Qxd6 {[%emt 0:00:42]} cxd6 {[%emt 0:00:03]} 13. Nd4 {[%emt 0:00:03]} Bc4 {[%emt 0:01:36]} 14. Rfd1 {[%emt 0:00:11]} O-O {[%emt 0:01:28]} 15. Nf5 {[%emt 0:01:35]} d5 {[%emt 0:00:15]} 16. b3 {[%emt 0:06:00]} Be2 {[%emt 0:02:51]} 17. Rd2 {[%emt 0:00:06]} Bg4 {[%emt 0:01:38]} 18. Nd6 {[%emt 0:02:55]} dxe4 {[%emt 0:00:49]} 19. Nxb7 {[%emt 0:00:09]} Rfb8 {[%emt 0:03:13]} 20. Nd6 {[%emt 0:03:29]} Rd8 {[%emt 0:00:12]} 21. h3 {[%emt 0:01:39]} Be6 {[%emt 0:01:13]} 22. Nxe4 {[%emt 0:00:17]} Rxd2 {[%emt 0:00:15]} 23. Bxd2 {[%emt 0:02:37]} Bf5 {[%emt 0:54:33]} 24. Nd6 {[%emt 0:04:59]} Bxc2 {[%emt 0:00:00]} 25. Rc1 {[%emt 0:00:17]} Rd8 {[%emt 0:00:00]} 26. Bb4 {[%emt 0:00:09]} Bd3 {[%emt 0:00:00]} 27. Rxc6 {[%emt 0:00:09]} Ne7 {[%emt 0:00:00]} 28. Rc1 {[%emt 0:01:01]} Nd5 {[%emt 0:00:00]} 29. Bc5 {[%emt 0:00:30]} Nf4 {[%emt 0:00:00]} 30. Kh2 {[%emt 0:00:03]} Bg6 {[%emt 0:00:00]} 31. b4 {[%emt 0:00:18]} Ne2 {[%emt 0:00:00]} 32. Re1 {[%emt 0:03:15]} Nc3 {[%emt 0:00:00]} 33. f4 {[%emt 0:00:40]} Nb5 {[%emt 0:00:00]} 34. f5 {[%emt 0:03:21]} Bf7 {[%emt 0:00:00]} 35. Nxf7 {[%emt 0:00:09]} Kxf7 {[%emt 0:00:00]} 36. Re7+ {[%emt 0:00:03]} Kg8 {[%emt 0:00:00]} 37. Re6 {[%emt 0:00:27]} Ra8 {[%emt 0:00:00]} 38. a4 {[%emt 0:00:28]} Nc3 {[%emt 0:00:00]} 39. a5 {[%emt 0:00:02]} Nb5 {[%emt 0:00:00]} 40. g4 {[%emt 0:00:11]} Nc7 {[%emt 0:00:00]} 41. Rd6 {[%emt 0:00:41]} Nb5 {[%emt 0:00:00]} 42. Rc6 {[%emt 0:00:05]} h6 {[%emt 0:00:00]} 43. Kg3 {[%emt 0:00:15]} Kf7 {[%emt 0:00:00]} 44. Kf4 {[%emt 0:00:25]} Nc3 {[%emt 0:00:00]} 45. Ke3 {[%emt 0:01:19]} Nb5 {[%emt 0:00:00]} 46. Re6 {[%emt 0:00:54]} Re8 {[%emt 0:00:00]} 47. Rxe8 {[%emt 0:00:12]} Kxe8 {[%emt 0:00:00]} 48. Ke4 {[%emt 0:00:02]} Nc7 {[%emt 0:00:00]} 49. Bd6 {[%emt 0:00:03]} Nb5 {[%emt 0:00:00]} 50. Kd5 {[%emt 0:00:02]} Na7 {[%emt 0:00:00]} 51. Bc5 {[%emt 0:00:18]} 1-0

[Event "3rd Gujarat GM Open 2022"]
[Site "Ahmedabad"]
[Date "2022.04.02"]
[Round "2.7"]
[White "Chandrajeet Singh Rajawat"]
[Black "Chanda, Sandipan"]
[Result "1/2-1/2"]
[ECO "B97"]
[WhiteElo "1789"]
[BlackElo "2485"]
[Annotator "ChessBase"]
[PlyCount "100"]
[EventDate "2022.03.31"]
[EventType "swiss"]
[EventCountry "IND"]
[SourceTitle "playchess.com"]
[Source "ChessBase"]
[SourceQuality "1"]
[TimeControl "5400+30"]

1. e4 {[%emt 0:00:20]} c5 {[%emt 0:00:38]} 2. Nf3 {[%emt 0:00:11]} d6 {[%emt 0:00:12]} 3. d4 {[%emt 0:00:36]} cxd4 {[%emt 0:00:07]} 4. Nxd4 {[%emt 0:00:07]} Nf6 {[%emt 0:00:07]} 5. Nc3 {[%emt 0:00:11]} a6 {[%emt 0:00:10]} 6. Bg5 {[%emt 0:00:19]} e6 {[%emt 0:00:34]} 7. f4 {[%emt 0:00:35]} Qb6 {[%emt 0:00:25]} 8. Qd2 {[%emt 0:01:24]} Qxb2 {[%emt 0:00:53]} 9. Rb1 {[%emt 0:00:30]} Qa3 10. f5 {[%emt 0:00:30]} Be7 {[%emt 0:01:00]} 11. fxe6 {[%emt 0:01:46]} Bxe6 {[%emt 0:01:22]} 12. Nxe6 {[%emt 0:00:20]} fxe6 {[%emt 0:00:07]} 13. Bc4 {[%emt 0:00:13]} Nbd7 {[%emt 0:00:16]} 14. Bxe6 {[%emt 0:00:31]} Nc5 {[%emt 0:00:25]} 15. Bf5 {[%emt 0:00:14]} g6 {[%emt 0:04:05]} 16. Bh3 {[%emt 0:00:44]} Nfxe4 {[%emt 0:05:50]} 17. Nxe4 {[%emt 0:00:29]} Nxe4 {[%emt 0:00:06]} 18. Qd4 {[%emt 0:00:08]} Qc3+ {[%emt 0:00:13]} 19. Qxc3 {[%emt 0:00:03]} Nxc3 {[%emt 0:00:09]} 20. Bxe7 {[%emt 0:00:08]} Kxe7 {[%emt 0:02:28]} 21. Rb3 {[%emt 0:05:11]} Ne4 {[%emt 0:01:27]} 22. Rxb7+ {[%emt 0:00:05]} Kf6 {[%emt 0:00:12]} 23. O-O+ {[%emt 0:00:09]} Kg5 {[%emt 0:00:25]} 24. g3 {[%emt 0:01:42]} Rab8 {[%emt 0:07:19]} 25. Ra7 {[%emt 0:06:52]} Nc5 {[%emt 0:06:10]} 26. Rf4 {[%emt 0:09:50]} h5 {[%emt 0:02:12]} 27. Bf1 {[%emt 0:03:05]} Rb2 {[%emt 0:23:45]} 28. h4+ {[%emt 0:19:17]} Kh6 {[%emt 0:00:13]} 29. a4 {[%emt 0:02:41]} Rxc2 {[%emt 0:02:13]} 30. Bxa6 {[%emt 0:02:17]} Nxa6 {[%emt 0:02:13]} 31. Rxa6 {[%emt 0:00:11]} Rb8 {[%emt 0:00:27]} 32. Rf2 {[%emt 0:03:52]} Rc3 {[%emt 0:06:07]} 33. Kh2 {[%emt 0:12:26]} Rbb3 {[%emt 0:03:08]} 34. Rxd6 {[%emt 0:00:08]} Rxg3 {[%emt 0:00:07]} 35. Rd4 {[%emt 0:00:36]} Rh3+ {[%emt 0:01:03]} 36. Kg1 {[%emt 0:02:28]} Rbg3+ {[%emt 0:03:04]} 37. Rg2 {[%emt 0:01:19]} Ra3 {[%emt 0:00:07]} 38. Rf2 {[%emt 0:00:57]} Rhb3 {[%emt 0:05:06]} 39. Rff4 {[%emt 0:02:09]} Rb2 {[%emt 0:01:24]} 40. Rf2 {[%emt 0:00:45]} Ra1+ {[%emt 0:00:09]} 41. Rf1 {[%emt 0:01:28]} Raa2 {[%emt 0:00:09]} 42. Rff4 {[%emt 0:00:05]} Rc2 {[%emt 0:02:55]} 43. Rb4 {[%emt 0:01:19]} Rc3 {[%emt 0:01:12]} 44. Rbd4 {[%emt 0:02:02]} Rg3+ {[%emt 0:01:39]} 45. Kf1 {[%emt 0:01:58]} Rga3 {[%emt 0:02:53]} 46. Kg1 {[%emt 0:00:36]} Rb3 {[%emt 0:03:29]} 47. Rb4 {[%emt 0:02:31]} Rg3+ {[%emt 0:00:14]} 48. Kf1 {[%emt 0:00:04]} Rh2 {[%emt 0:00:33]} 49. Rbd4 {[%emt 0:01:27]} Ra3 {[%emt 0:03:40]} 50. Kg1 {[%emt 0:00:10]} Rb2 {[%emt 0:01:47]} 1/2-1/2

[Event "3rd Gujarat GM Open 2022"]
[Site "Ahmedabad"]
[Date "2022.04.02"]
[Round "3.1"]
[White "Delgado Ramirez, Neuris"]
[Black "Anadkat Kartavya"]
[Result "1-0"]
[ECO "C70"]
[WhiteElo "2615"]
[BlackElo "2241"]
[Annotator "ChessBase"]
[PlyCount "57"]
[EventDate "2022.03.31"]
[EventType "swiss"]
[EventCountry "IND"]
[SourceTitle "playchess.com"]
[Source "ChessBase"]
[SourceQuality "1"]
[TimeControl "5400+30"]

1. e4 {[%emt 0:04:35]} e5 {[%emt 0:00:39]} 2. Nf3 {[%emt 0:00:19]} Nc6 {[%emt 0:00:07]} 3. Bb5 {[%emt 0:00:08]} a6 {[%emt 0:00:03]} 4. Ba4 {[%emt 0:00:05]} f5 {[%emt 0:00:19]} 5. Bxc6 {[%emt 0:05:19]} bxc6 {[%emt 0:02:09]} 6. O-O {[%emt 0:06:01]} fxe4 {[%emt 0:02:51]} 7. Nxe5 {[%emt 0:00:40]} Nf6 {[%emt 0:01:17]} 8. d4 {[%emt 0:02:08]} Bb7 {[%emt 0:28:31]} 9. Nc3 {[%emt 0:00:34]} Qe7 {[%emt 0:10:47]} 10. Re1 {[%emt 0:06:42]} d6 {[%emt 0:08:30]} 11. Nc4 {[%emt 0:11:00]} d5 {[%emt 0:06:37]} 12. Na5 {[%emt 0:01:32]} O-O-O {[%emt 0:00:02]} 13. Na4 {[%emt 0:08:31]} Qb4 {[%emt 0:04:16]} 14. Nxb7 {[%emt 0:02:02]} Qxb7 {[%emt 0:03:16]} 15. Bg5 {[%emt 0:01:03]} Bd6 {[%emt 0:06:37]} 16. Rc1 {[%emt 0:04:05]} h6 {[%emt 0:11:12]} 17. Bxf6 {[%emt 0:02:02]} gxf6 {[%emt 0:00:46]} 18. c4 {[%emt 0:00:03]} Rdg8 {[%emt 0:01:04]} 19. cxd5 {[%emt 0:01:10]} cxd5 {[%emt 0:00:02]} 20. Re3 {[%emt 0:00:22]} Kd8 {[%emt 0:01:54]} 21. Nc5 {[%emt 0:02:05]} Qc8 {[%emt 0:00:30]} 22. Qb3 {[%emt 0:01:01]} Qf5 {[%emt 0:04:57]} 23. Nb7+ {[%emt 0:00:45]} Ke7 {[%emt 0:00:00]} 24. Nxd6 {[%emt 0:00:31]} cxd6 {[%emt 0:00:02]} 25. Rc7+ {[%emt 0:01:13]} Ke6 {[%emt 0:00:03]} 26. f3 {[%emt 0:00:26]} Rxg2+ {[%emt 0:03:50]} 27. Kxg2 {[%emt 0:00:10]} Qg5+ {[%emt 0:00:11]} 28. Kh1 {[%emt 0:00:44]} f5 {[%emt 0:00:45]} 29. fxe4 {[%emt 0:00:11]} 1-0

[Event "3rd Gujarat GM Open 2022"]
[Site "Ahmedabad"]
[Date "2022.04.02"]
[Round "3.2"]
[White "Arpita, Mukherjee"]
[Black "Savchenko, Boris"]
[Result "1/2-1/2"]
[ECO "C84"]
[WhiteElo "2260"]
[BlackElo "2535"]
[Annotator "ChessBase"]
[PlyCount "77"]
[EventDate "2022.03.31"]
[EventType "swiss"]
[EventCountry "IND"]
[SourceTitle "playchess.com"]
[Source "ChessBase"]
[SourceQuality "1"]
[TimeControl "5400+30"]

1. e4 {[%emt 0:03:52]} e5 {[%emt 0:02:23]} 2. Nf3 {[%emt 0:00:12]} Nc6 {[%emt 0:00:06]} 3. Bb5 {[%emt 0:00:13]} a6 {[%emt 0:00:06]} 4. Ba4 {[%emt 0:00:04]} Nf6 {[%emt 0:00:05]} 5. d3 {[%emt 0:00:05]} d6 {[%emt 0:02:46]} 6. c3 {[%emt 0:00:22]} b5 {[%emt 0:05:09]} 7. Bc2 {[%emt 0:01:28]} Be7 {[%emt 0:07:44]} 8. O-O {[%emt 0:00:15]} O-O {[%emt 0:00:55]} 9. Re1 {[%emt 0:00:08]} Re8 {[%emt 0:01:49]} 10. h3 {[%emt 0:02:54]} h6 {[%emt 0:04:39]} 11. Nbd2 {[%emt 0:05:33]} d5 {[%emt 0:02:13]} 12. Nf1 {[%emt 1:21:24]} Be6 {[%emt 0:13:28]} 13. exd5 {[%emt 0:00:00]} Qxd5 {[%emt 0:01:51]} 14. Qe2 {[%emt 0:00:00]} Bf8 {[%emt 0:09:04]} 15. a4 {[%emt 0:00:00]} b4 {[%emt 0:05:25]} 16. a5 {[%emt 0:00:00]} b3 {[%emt 0:12:03]} 17. c4 {[%emt 0:00:00]} Qc5 {[%emt 0:00:26]} 18. Bxb3 {[%emt 0:00:00]} e4 {[%emt 0:03:23]} 19. dxe4 {[%emt 0:00:00]} Nxa5 {[%emt 0:00:58]} 20. Ba4 {[%emt 0:00:00]} Bxc4 {[%emt 0:00:37]} 21. Qc2 {[%emt 0:00:00]} Bb5 {[%emt 0:01:17]} 22. e5 {[%emt 0:00:00]} Nd7 {[%emt 0:05:18]} 23. e6 {[%emt 0:00:00]} Rxe6 {[%emt 0:06:34]} 24. Rxe6 {[%emt 0:00:00]} fxe6 {[%emt 0:00:20]} 25. Qg6 {[%emt 0:00:00]} Bxa4 {[%emt 0:04:37]} 26. Qxe6+ {[%emt 0:00:00]} Kh8 {[%emt 0:00:04]} 27. Rxa4 {[%emt 0:00:00]} Qxc1 {[%emt 0:04:22]} 28. Qxd7 {[%emt 0:00:00]} Qc6 {[%emt 0:02:00]} 29. Ne5 {[%emt 0:00:00]} Qxd7 {[%emt 0:01:12]} 30. Nxd7 {[%emt 0:00:00]} Nb3 {[%emt 0:00:40]} 31. Nxf8 {[%emt 0:00:00]} Rxf8 {[%emt 0:00:06]} 32. Rxa6 {[%emt 0:00:00]} Nc1 {[%emt 0:01:07]} 33. f3 {[%emt 0:00:00]} Rb8 {[%emt 0:01:22]} 34. Rc6 {[%emt 0:00:00]} Ne2+ {[%emt 0:00:07]} 35. Kh2 {[%emt 0:00:00]} Rxb2 {[%emt 0:00:08]} 36. Rxc7 {[%emt 0:00:00]} Nf4 {[%emt 0:00:26]} 37. Ne3 {[%emt 0:00:00]} Re2 {[%emt 0:01:48]} 38. Rc4 {[%emt 0:00:00]} Nxh3 {[%emt 0:01:03]} 39. Kxh3 {[%emt 0:00:00]} 1/2-1/2

[Event "3rd Gujarat GM Open 2022"]
[Site "Ahmedabad"]
[Date "2022.04.02"]
[Round "3.3"]
[White "Stany, G.A."]
[Black "Aradhya, Garg"]
[Result "1/2-1/2"]
[ECO "C70"]
[WhiteElo "2517"]
[BlackElo "2236"]
[Annotator "ChessBase"]
[PlyCount "128"]
[EventDate "2022.03.31"]
[EventType "swiss"]
[EventCountry "IND"]
[SourceTitle "playchess.com"]
[Source "ChessBase"]
[SourceQuality "1"]
[TimeControl "5400+30"]

1. e4 {[%emt 0:04:47]} e5 {[%emt 0:00:05]} 2. Nf3 {[%emt 0:00:06]} Nc6 {[%emt 0:00:05]} 3. Bb5 {[%emt 0:00:03]} a6 {[%emt 0:00:03]} 4. Ba4 {[%emt 0:00:05]} Bc5 {[%emt 0:06:07]} 5. O-O {[%emt 0:01:55]} d6 {[%emt 0:10:03]} 6. c3 {[%emt 0:02:06]} Bd7 {[%emt 0:00:08]} 7. d4 {[%emt 0:00:29]} Ba7 {[%emt 0:00:08]} 8. Re1 {[%emt 0:12:13]} Nf6 {[%emt 0:02:34]} 9. Be3 {[%emt 0:16:48]} O-O {[%emt 0:00:29]} 10. h3 {[%emt 0:09:57]} Re8 {[%emt 0:12:16]} 11. d5 {[%emt 0:02:13]} Ne7 {[%emt 0:01:57]} 12. Bxa7 {[%emt 0:05:25]} Rxa7 {[%emt 0:00:25]} 13. c4 {[%emt 0:00:06]} b5 {[%emt 0:03:29]} 14. Bb3 {[%emt 0:08:22]} Ng6 {[%emt 0:02:41]} 15. Re3 {[%emt 0:05:00]} Qb8 {[%emt 0:04:43]} 16. Nbd2 {[%emt 0:01:23]} Nf4 {[%emt 0:03:22]} 17. Kh2 {[%emt 0:02:48]} c6 {[%emt 0:06:15]} 18. dxc6 {[%emt 0:00:36]} Bxc6 {[%emt 0:00:01]} 19. cxb5 {[%emt 0:02:16]} axb5 {[%emt 0:00:50]} 20. Rc1 {[%emt 0:01:31]} Qa8 {[%emt 0:01:28]} 21. Qc2 {[%emt 0:02:35]} Bd7 {[%emt 0:07:33]} 22. Ng5 {[%emt 0:00:58]} d5 {[%emt 0:04:14]} 23. exd5 {[%emt 0:02:28]} h6 {[%emt 0:04:29]} 24. Ngf3 {[%emt 0:08:36]} Qb8 {[%emt 0:04:26]} 25. d6 {[%emt 0:00:31]} Qxd6 {[%emt 0:00:57]} 26. Ne4 {[%emt 0:00:16]} Nxe4 {[%emt 0:02:10]} 27. Qxe4 {[%emt 0:00:08]} Ng6 {[%emt 0:09:40]} 28. Rd1 {[%emt 0:02:27]} Qf6 {[%emt 0:00:16]} 29. Qd5 {[%emt 0:03:23]} Rc7 {[%emt 0:05:22]} 30. Qd6 {[%emt 0:00:23]} Qxd6 {[%emt 0:00:26]} 31. Rxd6 {[%emt 0:00:04]} Kf8 {[%emt 0:00:05]} 32. Rb6 {[%emt 0:04:05]} f6 {[%emt 0:00:42]} 33. Nd2 {[%emt 0:00:18]} Ne7 {[%emt 0:01:10]} 34. Ne4 {[%emt 0:00:18]} Nf5 {[%emt 0:00:47]} 35. Rc3 {[%emt 0:01:00]} Rec8 {[%emt 0:02:02]} 36. Bc2 {[%emt 0:01:31]} Nd4 {[%emt 0:00:33]} 37. Bd3 {[%emt 0:00:04]} f5 {[%emt 0:00:55]} 38. Rxc7 {[%emt 0:00:22]} Rxc7 {[%emt 0:00:02]} 39. Nc3 {[%emt 0:00:06]} e4 {[%emt 0:03:08]} 40. Bf1 {[%emt 0:00:33]} Be8 {[%emt 0:03:13]} 41. a3 {[%emt 0:01:50]} Rc5 {[%emt 0:00:13]} 42. Rb7 {[%emt 0:00:40]} Re5 {[%emt 0:00:48]} 43. Rb6 {[%emt 0:00:35]} f4 {[%emt 0:00:29]} 44. Rd6 {[%emt 0:00:21]} Nf5 {[%emt 0:00:12]} 45. Rd8 {[%emt 0:00:44]} Ke7 {[%emt 0:00:47]} 46. Rd5 {[%emt 0:00:13]} Ke6 {[%emt 0:00:33]} 47. Rxe5+ {[%emt 0:00:32]} Kxe5 {[%emt 0:00:02]} 48. Bxb5 {[%emt 0:00:38]} Bxb5 {[%emt 0:00:48]} 49. Nxb5 {[%emt 0:00:04]} Nd4 {[%emt 0:00:20]} 50. Nc3 {[%emt 0:00:28]} Nb3 {[%emt 0:00:26]} 51. a4 {[%emt 0:00:26]} g5 {[%emt 0:00:23]} 52. Kg1 {[%emt 0:00:38]} Kd4 {[%emt 0:00:06]} 53. Kf1 {[%emt 0:00:05]} Kd3 {[%emt 0:00:24]} 54. Ke1 {[%emt 0:00:13]} h5 {[%emt 0:01:20]} 55. h4 {[%emt 0:01:39]} gxh4 {[%emt 0:00:21]} 56. Nd5 {[%emt 0:00:09]} f3 {[%emt 0:00:11]} 57. Nf4+ {[%emt 0:00:30]} Kc2 {[%emt 0:00:06]} 58. Kf1 {[%emt 0:00:44]} Kxb2 {[%emt 0:00:56]} 59. gxf3 {[%emt 0:00:24]} exf3 {[%emt 0:00:17]} 60. Kg1 {[%emt 0:00:40]} Ka3 {[%emt 0:00:36]} 61. Ng6 {[%emt 0:00:11]} Kxa4 {[%emt 0:00:34]} 62. Nxh4 {[%emt 0:00:04]} Nd4 {[%emt 0:00:14]} 63. Kh2 {[%emt 0:00:03]} Kb4 {[%emt 0:00:06]} 64. Kg3 {[%emt 0:00:05]} Kc4 {[%emt 0:00:08]} 1/2-1/2